fUSD/lending_fUSD_20240803
["ID","MTS","AMOUNT","RATE_DAILY","PERIOD"]
[334005940,1722672701214,-408.13096936,0.00018904,2]
[334005941,1722672701226,-508.13,0.00018904,2]
[334005942,1722672701238,-924.44,0.00018904,2]
[334005943,1722672701247,-500.0,0.00018904,2]
[334005944,1722672701257,-748.67,0.00018904,2]
[334005945,1722672701267,-610.71,0.00018904,2]
[334005946,1722672701276,-500.0,0.00018904,2]
[334005947,1722672701286,-616.11,0.00018904,2]
[334005948,1722672701296,-500.0,0.00018904,2]
[334005949,1722672701306,-500.0,0.00018904,2]
[334005950,1722672701315,-500.0,0.00018904,2]
[334005951,1722672701325,-500.0,0.00018904,2]
[334005952,1722672701334,-500.0,0.00018904,2]
[334005953,1722672701344,-526.29,0.00018904,2]
[334005954,1722672701355,-500.0,0.00018904,2]
[334005955,1722672701364,-804.34,0.00018904,2]
[334005956,1722672701374,-500.0,0.00018904,2]
[334005957,1722672701383,-500.0,0.00018904,2]
[334005958,1722672701393,-500.0,0.00018904,2]
[334005959,1722672701403,-500.0,0.00018904,2]
[334005960,1722672701412,-500.0,0.00018904,2]
[334005961,1722672701421,-590.71,0.00018904,2]
[334005962,1722672701431,-500.0,0.00018904,2]
[334005963,1722672701442,-500.0,0.00018904,2]
[334005964,1722672701452,-572.46,0.00018904,2]
[334005965,1722672701461,-500.0,0.00018904,2]
[334005966,1722672701471,-500.0,0.00018904,2]
[334005967,1722672701481,-500.0,0.00018904,2]
[334005968,1722672701490,-1146.83,0.00018904,2]
[334005969,1722672701504,-500.0,0.00018904,2]
[334005970,1722672701515,-951.73,0.00018904,2]
[334005971,1722672701529,-888.24,0.00018904,2]
[334005972,1722672701540,-1734.7,0.00018904,2]
[334005973,1722672701550,-500.0,0.00018904,2]
[334005974,1722672701560,-774.79,0.00018904,2]
[334005975,1722672701570,-500.0,0.00018904,2]
[334005976,1722672701580,-500.0,0.00018904,2]
[334005977,1722672701591,-500.0,0.00018904,2]
[334005978,1722672701603,-527.68772598,0.00018904,2]
[334005979,1722672701615,-515.29303016,0.00018904,2]
[334005980,1722672701630,-682.31,0.00018904,2]
[334005981,1722672701639,-500.0,0.00018904,2]
[334005982,1722672701650,-500.0,0.00018904,2]
[334005983,1722672701659,-500.0,0.00018904,2]
[334005984,1722672701669,-648.41,0.00018904,2]
[334005985,1722672701679,-500.0,0.00018904,2]
[334005986,1722672701689,-795.59,0.00018904,2]
[334005987,1722672701699,-500.0,0.00018904,2]
[334005988,1722672701708,-500.0,0.00018904,2]
[334005989,1722672701718,-500.0,0.00018904,2]
[334005990,1722672701727,-723.82,0.00018904,2]
[334005991,1722672701744,-500.0,0.00018904,2]
[334005992,1722672701754,-500.0,0.00018904,2]
[334005993,1722672701765,-569.08330341,0.00018904,2]
[334005994,1722672701774,-500.0,0.00018904,2]
[334005995,1722672701784,-500.0,0.00018904,2]
[334005996,1722672701793,-1168.92,0.00018904,2]
[334005997,1722672701803,-819.92,0.00018904,2]
[334005998,1722672701812,-500.0,0.00018904,2]
[334005999,1722672701822,-500.0,0.00018904,2]
[334006000,1722672701831,-508.94,0.00018904,2]
[334006001,1722672701841,-582.03,0.00018904,2]
[334006002,1722672701850,-500.0,0.00018904,2]
[334006003,1722672701859,-618.32,0.00018904,2]
[334006004,1722672701869,-1159.6,0.00018904,2]
[334006005,1722672701879,-500.0,0.00018904,2]
[334006006,1722672701888,-500.0,0.00018904,2]
[334006007,1722672701897,-500.0,0.00018904,2]
[334006008,1722672701907,-500.0,0.00018904,2]
[334006009,1722672701917,-577.66,0.00018904,2]
[334006010,1722672701927,-500.0,0.00018904,2]
[334006011,1722672701936,-500.0,0.00018904,2]
[334006012,1722672701946,-549.41,0.00018904,2]
[334006013,1722672701955,-530.35,0.00018904,2]
[334006014,1722672701965,-500.0,0.00018904,2]
[334006015,1722672701974,-925.21,0.00018904,2]
[334006016,1722672701984,-525.77,0.00018904,2]
[334006017,1722672701994,-500.0,0.00018904,2]
[334006018,1722672702004,-500.0,0.00018904,2]
[334006019,1722672702014,-500.0,0.00018904,2]
[334006020,1722672702023,-500.0,0.00018904,2]
[334006021,1722672702033,-500.0,0.00018904,2]
[334006022,1722672702042,-212.00622533,0.00018904,2]
[334006023,1722672702052,-500.0,0.00018904,2]
[334006024,1722672702061,-904.56,0.00018904,2]
[334006025,1722672702071,-501.53,0.00018904,2]
[334006026,1722672702080,-500.0,0.00018904,2]
[334006027,1722672702089,-500.0,0.00018904,2]
[334006028,1722672702099,-500.0,0.00018904,2]
[334006029,1722672702108,-622.55,0.00018904,2]
[334006030,1722672702117,-540.33,0.00018904,2]
[334006031,1722672702126,-500.0,0.00018904,2]
[334006032,1722672702136,-602.82,0.00018904,2]
[334006033,1722672702145,-644.95,0.00018904,2]
[334006034,1722672702154,-503.96,0.00018904,2]
[334006035,1722672702163,-500.0,0.00018904,2]
[334006036,1722672702174,-825.13,0.00018904,2]
[334006037,1722672702183,-500.0,0.00018904,2]
[334006038,1722672702193,-500.0,0.00018904,2]
[334006039,1722672702202,-500.0,0.00018904,2]
[334006040,1722672702211,-500.0,0.00018904,2]
[334006041,1722672702220,-1519.4,0.00018904,2]
[334006042,1722672702231,-242.29119202,0.00018904,2]
[334006043,1722672702240,-500.0,0.00018904,2]
[334006044,1722672702249,-684.44,0.00018904,2]
[334006045,1722672702259,-174.42229256,0.00018904,2]
[334006046,1722672702270,-500.0,0.00018904,2]
[334006047,1722672702279,-500.0,0.00018904,2]
[334006048,1722672702288,-584.67,0.00018904,2]
[334006049,1722672702298,-604.12,0.00018904,2]
[334006050,1722672702307,-528.36,0.00018904,2]
[334006051,1722672702317,-616.8,0.00018904,2]
[334006052,1722672702326,-226.87248399,0.00018904,2]
[334006053,1722672702336,-509.32,0.00018904,2]
[334006054,1722672702345,-500.0,0.00018904,2]
[334006055,1722672702355,-500.0,0.00018904,2]
[334006056,1722672702366,-743.5,0.00018904,2]
[334006057,1722672702376,-1060.37,0.00018904,2]
[334006058,1722672702386,-500.0,0.00018904,2]
[334006059,1722672702396,-774.18,0.00018904,2]
[334006060,1722672702406,-848.13,0.00018904,2]
[334006061,1722672702416,-712.98,0.00018904,2]
[334006062,1722672702427,-500.0,0.00018904,2]
[334006063,1722672702438,-772.65,0.00018904,2]
[334006064,1722672702448,-744.14,0.00018904,2]
[334006065,1722672702458,-500.0,0.00018904,2]
[334006066,1722672702467,-358.50527384,0.00018904,2]
[334006067,1722672702477,-958.9,0.00018904,2]
[334006068,1722672702487,-500.0,0.00018904,2]
[334006069,1722672702496,-500.0,0.00018904,2]
[334006070,1722672702506,-1086.35,0.00018904,2]
[334006071,1722672702518,-500.0,0.00018904,2]
[334006072,1722672702529,-500.0,0.00018904,2]
[334006073,1722672702539,-500.0,0.00018904,2]
[334006074,1722672702549,-500.0,0.00018904,2]
[334006075,1722672702559,-500.0,0.00018904,2]
[334006076,1722672702568,-879.02,0.00018904,2]
[334006077,1722672702578,-1083.8,0.00018904,2]
[334006078,1722672702589,-500.0,0.00018904,2]
[334006079,1722672702601,-500.0,0.00018904,2]
[334006080,1722672702610,-515.45,0.00018904,2]
[334006081,1722672702620,-500.0,0.00018904,2]
[334006082,1722672702630,-500.0,0.00018904,2]
[334006083,1722672702640,-582.42,0.00018904,2]
[334006084,1722672702650,-500.0,0.00018904,2]
[334006085,1722672702660,-500.0,0.00018904,2]
[334006086,1722672702670,-500.0,0.00018904,2]
[334006087,1722672702680,-500.0,0.00018904,2]
[334006088,1722672702690,-370.30499434,0.00018904,2]
[334006089,1722672702700,-500.0,0.00018904,2]
[334006090,1722672702710,-500.0,0.00018904,2]
[334006091,1722672702720,-500.0,0.00018904,2]
[334006092,1722672702731,-1218.45,0.00018904,2]
[334006093,1722672702741,-500.0,0.00018904,2]
[334006094,1722672702751,-527.92,0.00018904,2]
[334006095,1722672702762,-500.0,0.00018904,2]
[334006096,1722672702772,-500.0,0.00018904,2]
[334006097,1722672702783,-500.0,0.00018904,2]
[334006098,1722672702793,-611.34,0.00018904,2]
[334006099,1722672702802,-500.0,0.00018904,2]
[334006100,1722672702812,-500.0,0.00018904,2]
[334006101,1722672702821,-500.0,0.00018904,2]
[334006102,1722672702831,-500.0,0.00018904,2]
[334006103,1722672702841,-705.81,0.00018904,2]
[334006104,1722672702850,-661.0,0.00018904,2]
[334006105,1722672702860,-342.67,0.00018904,2]
[334006106,1722672702870,-500.0,0.00018904,2]
[334006107,1722672702880,-500.0,0.00018904,2]
[334006108,1722672702890,-638.82,0.00018904,2]
[334006109,1722672702901,-744.23,0.00018904,2]
[334006110,1722672702911,-500.0,0.00018904,2]
[334006111,1722672702921,-570.99,0.00018904,2]
[334006112,1722672702931,-727.54,0.00018904,2]
[334006113,1722672702942,-500.0,0.00018904,2]
[334006114,1722672702951,-500.0,0.00018904,2]
[334006115,1722672702961,-617.25,0.00018904,2]
[334006116,1722672702971,-500.0,0.00018904,2]
[334006117,1722672702980,-714.79,0.00018904,2]
[334006118,1722672702991,-556.41,0.00018904,2]
[334006119,1722672703000,-500.0,0.00018904,2]
[334006120,1722672703010,-500.0,0.00018904,2]
[334006121,1722672703019,-788.92,0.00018904,2]
[334006122,1722672703415,-1029.17,0.00018904,2]
[334006123,1722672703427,-326.16764275,0.00018904,2]
[334006124,1722672703438,-500.0,0.00018904,2]
[334006125,1722672703448,-710.03,0.00018904,2]
[334006126,1722672703458,-738.88,0.00018904,2]
[334006127,1722672703468,-539.38,0.00018904,2]
[334006128,1722672703478,-808.77,0.00018904,2]
[334006129,1722672703488,-500.0,0.00018904,2]
[334006130,1722672703498,-830.0,0.00018904,2]
[334006131,1722672703508,-525.28,0.00018904,2]
[334006132,1722672703520,-500.0,0.00018904,2]
[334006133,1722672703532,-554.02,0.00018904,2]
[334006134,1722672703541,-726.72,0.00018904,2]
[334006135,1722672703551,-500.0,0.00018904,2]
[334006136,1722672703562,-500.0,0.00018904,2]
[334006137,1722672703572,-500.0,0.00018904,2]
[334006138,1722672703583,-663.62,0.00018904,2]
[334006139,1722672703593,-500.0,0.00018904,2]
[334006140,1722672703603,-547.37,0.00018904,2]
[334006141,1722672703613,-500.0,0.00018904,2]
[334006142,1722672703623,-500.0,0.00018904,2]
[334006143,1722672703632,-658.43,0.00018904,2]
[334006144,1722672703643,-529.53,0.00018904,2]
[334006145,1722672703654,-1319.94,0.00018904,2]
[334006146,1722672703664,-1146.49,0.00018904,2]
[334006147,1722672703674,-725.1282291,0.00018904,2]
[334006148,1722672704229,-3508.2117709,0.00018904,2]
[334006149,1722672704241,-500.0,0.00018904,2]
[334006150,1722672704252,-955.66,0.00018904,2]
[334006151,1722672704263,-595.12,0.00018904,2]
[334006152,1722672704273,-673.07,0.00018904,2]
[334006153,1722672704283,-500.0,0.00018904,2]
[334006154,1722672704293,-746.94,0.00018904,2]
[334006155,1722672704302,-834.43,0.00018904,2]
[334006156,1722672704311,-9414.57,0.00018904,2]
[334006157,1722672704321,-500.0,0.00018904,2]
[334006158,1722672704330,-500.0,0.00018904,2]
[334006159,1722672704340,-1422.26,0.00018904,2]
[334006160,1722672704351,-657.98,0.00018904,2]
[334006161,1722672704362,-500.0,0.00018904,2]
[334006162,1722672704374,-684.61,0.00018904,2]
[334006163,1722672704383,-500.0,0.00018904,2]
[334006164,1722672704393,-500.0,0.00018904,2]
[334006165,1722672704405,-905.13,0.00018904,2]
[334006166,1722672704416,-500.0,0.00018904,2]
[334006167,1722672704428,-755.85,0.00018904,2]
[334006168,1722672704437,-500.0,0.00018904,2]
[334006169,1722672704448,-561.29,0.00018904,2]
[334006170,1722672704459,-500.0,0.00018904,2]
[334006171,1722672704469,-500.0,0.00018904,2]
[334006172,1722672704479,-857.89,0.00018904,2]
[334006173,1722672704489,-580.03,0.00018904,2]
[334006174,1722672704498,-42354.3,0.00018904,2]
[334006175,1722672704507,-5350.45,0.00018904,2]
[334006176,1722672704522,-500.0,0.00018904,2]
[334006177,1722672704531,-728.4,0.00018904,2]
[334006178,1722672704542,-500.0,0.00018904,2]
[334006179,1722672704552,-500.0,0.00018904,2]
[334006180,1722672704563,-3471.03,0.00018904,2]
[334006181,1722672704573,-609.74,0.00018904,2]
[334006182,1722672704582,-1689.99,0.00018904,2]
[334006183,1722672704592,-6425.66,0.00018904,2]
[334006184,1722672704603,-648.94,0.00018904,2]
[334006185,1722672704613,-500.0,0.00018904,2]
[334006186,1722672704623,-1670.28,0.00018904,2]
[334006187,1722672704633,-13172.1,0.00018904,2]
[334006188,1722672704642,-1009.29619213,0.00018904,2]
[334006189,1722672704655,-673.67079095,0.00018904,2]
[334006190,1722672704671,-545.922681,0.00016438,2]
[334006191,1722672704681,-4890.33917165,0.00018904,2]
[334006192,1722672704693,-127.73384527,0.00018904,2]
[334006193,1722672704703,-2424.35,0.00018904,2]
[334006194,1722672704713,-1079.15,0.00018904,2]
[334006195,1722672704724,-697.85,0.00018904,2]
[334006196,1722672704733,-894.42007979,0.00018904,2]
[334006197,1722672704745,-367.22992021,0.00018904,2]
[334006198,1722672704755,-1264.29,0.00018904,2]
[334006199,1722672704764,-500.0,0.00018904,2]
[334006200,1722672704774,-500.0,0.00018904,2]
[334006201,1722672704784,-3981.7,0.00018904,2]
[334006202,1722672704794,-808.41,0.00018904,2]
[334006203,1722672704804,-9537.11,0.00018904,2]
[334006204,1722672704814,-627.46,0.00018904,2]
[334006205,1722672704823,-873.33,0.00018904,2]
[334006206,1722672704833,-4527.79,0.00018904,2]
[334006207,1722672704843,-1120.2,0.00018904,2]
[334006208,1722672704853,-500.0,0.00018904,2]
[334006209,1722672704863,-500.0,0.00018904,2]
[334006210,1722672704872,-1413.65,0.00018904,2]
[334006211,1722672704881,-799.1,0.00018904,2]
[334006212,1722672704890,-2582.22,0.00018904,2]
[334006213,1722672704899,-500.0,0.00018904,2]
[334006214,1722672704908,-500.0,0.00018904,2]
[334006215,1722672704918,-500.0,0.00018904,2]
[334006216,1722672704927,-558.9,0.00018904,2]
[334006217,1722672704936,-4338.65,0.00018904,2]
[334006218,1722672704945,-500.0,0.00018904,2]
[334006219,1722672704954,-589.65,0.00018904,2]
[334006220,1722672704964,-500.0,0.00018904,2]
[334006221,1722672704973,-6299.84,0.00018904,2]
[334006222,1722672704983,-500.0,0.00018904,2]
[334006223,1722672704997,-3567.38,0.00018904,2]
[334006224,1722672705006,-504.8,0.00018904,2]
[334006225,1722672705015,-500.0,0.00018904,2]
[334006226,1722672705025,-1132.78,0.00018904,2]
[334006227,1722672705034,-527.09,0.00018904,2]
[334006228,1722672705046,-500.0,0.00018904,2]
[334006229,1722672705056,-500.0,0.00018904,2]
[334006230,1722672705065,-557.75,0.00018904,2]
[334006231,1722672705075,-500.0,0.00018904,2]
[334006232,1722672705084,-775.61,0.00018904,2]
[334006233,1722672705093,-5075.14,0.00018904,2]
[334006234,1722672705102,-500.0,0.00018904,2]
[334006235,1722672705112,-1597.24,0.00018904,2]
[334006236,1722672705121,-524.51,0.00018904,2]
[334006237,1722672705131,-2236.78,0.00018904,2]
[334006238,1722672705140,-591.43,0.00018904,2]
[334006239,1722672705150,-739.97,0.00018904,2]
[334006240,1722672705159,-1988.37,0.00018904,2]
[334006241,1722672705170,-500.0,0.00018904,2]
[334006242,1722672705179,-500.0,0.00018904,2]
[334006243,1722672705189,-1779.35,0.00018904,2]
[334006244,1722672705198,-1153.18,0.00018904,2]
[334006245,1722672705208,-2500.75005623,0.00018904,2]
[334006246,1722672705220,-5079.73994377,0.00018904,2]
[334006247,1722672705230,-806.0,0.00018904,2]
[334006248,1722672705241,-520.82,0.00018904,2]
[334006249,1722672705251,-1222.12,0.00018904,2]
[334006250,1722672705260,-543.96,0.00018904,2]
[334006251,1722672705271,-500.0,0.00018904,2]
[334006252,1722672705280,-500.0,0.00018904,2]
[334006253,1722672705289,-1766.59,0.00018904,2]
[334006254,1722672705298,-2755.57,0.00018904,2]
[334006255,1722672705307,-500.0,0.00018904,2]
[334006256,1722672705317,-500.0,0.00018904,2]
[334006257,1722672705326,-6784.85,0.00018904,2]
[334006258,1722672705335,-500.0,0.00018904,2]
[334006259,1722672705344,-1170.99,0.00018904,2]
[334006260,1722672705353,-500.0,0.00018904,2]
[334006261,1722672705362,-1509.0,0.00018904,2]
[334006262,1722672705371,-2272.41,0.00018904,2]
[334006263,1722672705381,-1134.66,0.00018904,2]
[334006264,1722672705390,-788.7,0.00018904,2]
[334006265,1722672705400,-500.0,0.00018904,2]
[334006266,1722672705409,-500.0,0.00018904,2]
[334006267,1722672705418,-549.94929385,0.00018904,2]
[334006268,1722672705429,-500.0,0.00018904,2]
[334006269,1722672705438,-500.0,0.00018904,2]
[334006270,1722672705447,-556.92,0.00018904,2]
[334006271,1722672705457,-851.8,0.00018904,2]
[334006272,1722672705466,-500.0,0.00018904,2]
[334006273,1722672705475,-829.82,0.00018904,2]
[334006274,1722672705484,-500.0,0.00018904,2]
[334006275,1722672705494,-978.08,0.00018904,2]
[334006276,1722672705503,-3555.81,0.00018904,2]
[334006277,1722672705513,-1000.11,0.00018904,2]
[334006278,1722672705527,-500.0,0.00018904,2]
[334006279,1722672705536,-1173.97,0.00018904,2]
[334006280,1722672705546,-450.6475434,0.00018904,2]
[334006281,1722672705555,-500.0,0.00018904,2]
[334006282,1722672705565,-6514.15,0.00018904,2]
[334006283,1722672705575,-500.0,0.00018904,2]
[334006284,1722672705585,-828.77,0.00018904,2]
[334006285,1722672705596,-1272.15,0.00018904,2]
[334006286,1722672705605,-3333.78,0.00018904,2]
[334006287,1722672705615,-1598.98,0.00018904,2]
[334006288,1722672705624,-1643.08,0.00018904,2]
[334006289,1722672705634,-2015.77,0.00018904,2]
[334006290,1722672705644,-3382.08,0.00018904,2]
[334006291,1722672705654,-1056.18,0.00018904,2]
[334006292,1722672705664,-1410.26,0.00018904,2]
[334006293,1722672705674,-500.0,0.00018904,2]
[334006294,1722672705683,-500.0,0.00018904,2]
[334006295,1722672705693,-657.49,0.00018904,2]
[334006296,1722672705703,-1314.36,0.00018904,2]
[334006297,1722672705712,-5105.47,0.00018904,2]
[334006298,1722672705722,-1117.0,0.00018904,2]
[334006299,1722672705731,-863.0,0.00018904,2]
[334006300,1722672705742,-988.31,0.00018904,2]
[334006301,1722672705751,-500.0,0.00018904,2]
[334006302,1722672705761,-588.88,0.00018904,2]
[334006303,1722672705771,-916.53,0.00018904,2]
[334006304,1722672705781,-500.0,0.00018904,2]
[334006305,1722672705791,-3858.07,0.00018904,2]
[334006306,1722672705801,-886.61,0.00018904,2]
[334006307,1722672705909,-992.28470432,0.00018904,2]
[334006308,1722672705923,-640.98643833,0.00018904,2]
[334006309,1722672706034,-545.922681,0.00016438,2]
[334006310,1722672706044,-238.57980482,0.00018356,2]
[334006311,1722672706224,-545.922681,0.00016438,2]
[334006312,1722672706233,-43.028144,0.00016438,2]
[334006313,1722672706246,-502.894537,0.00016438,2]
[334006314,1722672706256,-114.335463,0.00016438,2]
[334006315,1722672706594,-546.70500003,0.0001629,2]
[334006316,1722672706610,-6953.29499997,0.0001629,2]
[334006317,1722672706620,-431.587218,0.00016438,2]
[334006318,1722672706629,-545.922681,0.00016438,2]
[334006319,1722672706638,-545.922681,0.00016438,2]
[334006320,1722672706647,-545.922681,0.00016438,2]
[334006321,1722672706657,-218.82295418,0.00016949,2]
[334006322,1722672706666,-3795.21,0.00017808,2]
[334006323,1722672706676,-3795.21,0.00018082,2]
[334006324,1722672706686,-261.42019518,0.00018356,2]
[334006325,1722672706695,-1104.11,0.00018356,2]
[334006326,1722672706704,-3795.21,0.00018356,2]
[334006327,1722672706716,-602.45,0.0001863,2]
[334006328,1722672706725,-500.0,0.0001863,2]
[334006329,1722672706735,-1104.11,0.0001863,2]
[334006330,1722672706745,-3795.21,0.0001863,2]
[334006331,1722672706755,-889.96885735,0.00018904,2]
[334006332,1722672706765,-1144.92,0.00018904,2]
[334006333,1722672706774,-500.0,0.00018904,2]
[334006334,1722672706784,-1055.01,0.00018904,2]
[334006335,1722672706793,-500.0,0.00018904,2]
[334006336,1722672706803,-596.99,0.00018904,2]
[334006337,1722672706812,-500.0,0.00018904,2]
[334006338,1722672706821,-867.52,0.00018904,2]
[334006339,1722672706830,-758.07,0.00018904,2]
[334006340,1722672706840,-500.0,0.00018904,2]
[334006341,1722672706849,-1413.54,0.00018904,2]
[334006342,1722672706858,-500.0,0.00018904,2]
[334006343,1722672706868,-626.69,0.00018904,2]
[334006344,1722672706877,-1086.46,0.00018904,2]
[334006345,1722672706887,-500.0,0.00018904,2]
[334006346,1722672706895,-945.91,0.00018904,2]
[334006347,1722672706905,-1048.09,0.00018904,2]
[334006348,1722672706914,-503.04,0.00018904,2]
[334006349,1722672706924,-2243.32,0.00018904,2]
[334006350,1722672706933,-500.0,0.00018904,2]
[334006351,1722672706943,-2041.55,0.00018904,2]
[334006352,1722672706952,-1876.41,0.00018904,2]
[334006353,1722672706961,-876.92,0.00018904,2]
[334006354,1722672706971,-563.90728623,0.00018904,2]
[334006355,1722672706980,-596.72,0.00018904,2]
[334006356,1722672706989,-1974.73,0.00018904,2]
[334006357,1722672706998,-500.0,0.00018904,2]
[334006358,1722672707008,-849.08,0.00018904,2]
[334006359,1722672707017,-1836.41,0.00018904,2]
[334006360,1722672707026,-500.0,0.00018904,2]
[334006361,1722672707035,-1295.33,0.00018904,2]
[334006362,1722672707045,-3536.23,0.00018904,2]
[334006363,1722672707054,-2083.37,0.00018904,2]
[334006364,1722672707063,-500.0,0.00018904,2]
[334006365,1722672707072,-500.0,0.00018904,2]
[334006366,1722672707081,-500.0,0.00018904,2]
[334006367,1722672707090,-500.0,0.00018904,2]
[334006368,1722672707099,-1001.94,0.00018904,2]
[334006369,1722672707109,-3080.78,0.00018904,2]
[334006370,1722672707118,-547.37,0.00018904,2]
[334006371,1722672707128,-500.0,0.00018904,2]
[334006372,1722672707137,-3054.54,0.00018904,2]
[334006373,1722672707146,-1224.2,0.00018904,2]
[334006374,1722672707155,-1519.85,0.00018904,2]
[334006375,1722672707164,-1194.14,0.00018904,2]
[334006376,1722672707174,-793.38,0.00018904,2]
[334006377,1722672707183,-500.0,0.00018904,2]
[334006378,1722672707193,-871.03,0.00018904,2]
[334006379,1722672707202,-525.65,0.00018904,2]
[334006380,1722672707211,-1267.34,0.00018904,2]
[334006381,1722672707221,-500.0,0.00018904,2]
[334006382,1722672707231,-3366.59,0.00018904,2]
[334006383,1722672707242,-992.94,0.00018904,2]
[334006384,1722672707251,-550.93,0.00018904,2]
[334006385,1722672707261,-555.73,0.00018904,2]
[334006386,1722672707271,-359.91189442,0.00018904,2]
[334006387,1722672707280,-642.28,0.00018904,2]
[334006388,1722672707290,-1946.82,0.00018904,2]
[334006389,1722672707300,-1662.23,0.00018904,2]
[334006390,1722672707310,-1212.94,0.00018904,2]
[334006391,1722672707319,-1900.41,0.00018904,2]
[334006392,1722672707329,-542.07889474,0.00018904,2]
[334006393,1722672707339,-937.73,0.00018904,2]
[334006394,1722672707348,-692.84,0.00018904,2]
[334006395,1722672707358,-1192.07,0.00018904,2]
[334006396,1722672707368,-2354.23,0.00018904,2]
[334006397,1722672707377,-1258.11,0.00018904,2]
[334006398,1722672707387,-500.0,0.00018904,2]
[334006399,1722672707396,-1060.96,0.00018904,2]
[334006400,1722672707405,-4981.79,0.00018904,2]
[334006401,1722672707414,-6100.7,0.00018904,2]
[334006402,1722672707424,-500.0,0.00018904,2]
[334006403,1722672707435,-937.04,0.00018904,2]
[334006404,1722672707445,-2840.72,0.00018904,2]
[334006405,1722672707455,-4003.25,0.00018904,2]
[334006406,1722672707465,-2170.91,0.00018904,2]
[334006407,1722672707475,-804.77,0.00018904,2]
[334006408,1722672707484,-500.0,0.00018904,2]
[334006409,1722672707495,-500.0,0.00018904,2]
[334006410,1722672707504,-1151.68,0.00018904,2]
[334006411,1722672707519,-2144.3,0.00018904,2]
[334006412,1722672707530,-500.0,0.00018904,2]
[334006413,1722672707539,-721.28,0.00018904,2]
[334006414,1722672707549,-500.0,0.00018904,2]
[334006415,1722672707559,-1032.34,0.00018904,2]
[334006416,1722672707569,-549.7,0.00018904,2]
[334006417,1722672707578,-2037.25,0.00018904,2]
[334006418,1722672707588,-928.42,0.00018904,2]
[334006419,1722672707599,-3499.27,0.00018904,2]
[334006420,1722672707610,-1536.28,0.00018904,2]
[334006421,1722672707622,-500.0,0.00018904,2]
[334006422,1722672707632,-1037.63,0.00018904,2]
[334006423,1722672707642,-1737.33,0.00018904,2]
[334006424,1722672707651,-1095.94,0.00018904,2]
[334006425,1722672707661,-1906.6,0.00018904,2]
[334006426,1722672707670,-500.0,0.00018904,2]
[334006427,1722672707680,-500.0,0.00018904,2]
[334006428,1722672707690,-663.02,0.00018904,2]
[334006429,1722672707700,-602.45,0.00018904,2]
[334006430,1722672707709,-500.0,0.00018904,2]
[334006431,1722672707720,-1104.11,0.00018904,2]
[334006432,1722672707730,-3795.21,0.00018904,2]
[334006433,1722672707740,-1500.0,0.00019,2]
[334006434,1722672707751,-1729.12,0.00019,7]
[334006435,1722672707760,-155.47678054,0.00019,2]
[334006436,1722672707770,-309.49,0.00019016,2]
[334006437,1722672707780,-153.415,0.00019031,2]
[334006438,1722672707790,-1110.68158911,0.00019063,2]
[334006439,1722672707801,-2000.0,0.000191,2]